fUSD/lending_fUSD_20250811
["ID","MTS","AMOUNT","RATE_DAILY","PERIOD"]
[378638370,1754935840897,-400.0,0.00016438,2]
[378638371,1754935840906,-400.0,0.00016438,2]
[378638372,1754935840915,-469.79914414,0.00016438,2]
[378638373,1754935840925,-511.51151419,0.00016438,2]
[378638374,1754935840934,-453.7,0.00016438,2]
[378638375,1754935840944,-400.0,0.00016438,2]
[378638376,1754935840953,-1914.23,0.00016438,2]
[378638377,1754935840962,-400.0,0.00016438,2]
[378638378,1754935840971,-495.45,0.00016438,2]
[378638379,1754935840981,-400.0,0.00016438,2]
[378638380,1754935840990,-566.38,0.00016438,2]
[378638381,1754935841004,-400.0,0.00016438,2]
[378638382,1754935841020,-400.0,0.00016438,2]
[378638383,1754935841030,-400.0,0.00016438,2]
[378638384,1754935841039,-423.82,0.00016438,2]
[378638385,1754935841049,-1427.98,0.00016438,2]
[378638386,1754935841058,-400.0,0.00016438,2]
[378638387,1754935841067,-400.0,0.00016438,2]
[378638388,1754935841076,-400.0,0.00016438,2]
[378638389,1754935841086,-400.0,0.00016438,2]
[378638390,1754935841095,-447.88,0.00016438,2]
[378638391,1754935841106,-400.0,0.00016438,2]
[378638392,1754935841117,-400.0,0.00016438,2]
[378638393,1754935841126,-400.0,0.00016438,2]
[378638394,1754935841135,-1922.72,0.00016438,2]
[378638395,1754935841146,-400.0,0.00016438,2]
[378638396,1754935841155,-400.0,0.00016438,2]
[378638397,1754935841165,-400.0,0.00016438,2]
[378638398,1754935841174,-400.0,0.00016438,2]
[378638399,1754935841186,-400.0,0.00016438,2]
[378638400,1754935841196,-454.13,0.00016438,2]
[378638401,1754935841205,-400.0,0.00016438,2]
[378638402,1754935841214,-400.0,0.00016438,2]
[378638403,1754935841224,-400.0,0.00016438,2]
[378638404,1754935841233,-400.0,0.00016438,2]
[378638405,1754935841242,-400.0,0.00016438,2]
[378638406,1754935841252,-164.51291158,0.00016438,2]
[378638407,1754935841261,-400.0,0.00016438,2]
[378638408,1754935841271,-400.0,0.00016438,2]
[378638409,1754935841282,-1107.68,0.00016438,2]
[378638410,1754935841291,-1241.4,0.00016438,2]
[378638411,1754935841300,-597.44,0.00016438,2]
[378638412,1754935841310,-609.92,0.00016438,2]
[378638413,1754935841320,-400.0,0.00016438,2]
[378638414,1754935841330,-525.8,0.00016438,2]
[378638415,1754935841340,-400.0,0.00016438,2]
[378638416,1754935841349,-400.0,0.00016438,2]
[378638417,1754935841359,-400.0,0.00016438,2]
[378638418,1754935841369,-469.59,0.00016438,2]
[378638419,1754935841379,-400.0,0.00016438,2]
[378638420,1754935841389,-400.0,0.00016438,2]
[378638421,1754935841399,-400.0,0.00016438,2]
[378638422,1754935841408,-400.0,0.00016438,2]
[378638423,1754935841418,-400.0,0.00016438,2]
[378638424,1754935841437,-400.8,0.00016438,2]
[378638425,1754935841448,-622.12,0.00016438,2]
[378638426,1754935841457,-400.0,0.00016438,2]
[378638427,1754935841467,-400.0,0.00016438,2]
[378638428,1754935841478,-400.0,0.00016438,2]
[378638429,1754935841488,-417.23,0.00016438,2]
[378638430,1754935841498,-640.06,0.00016438,2]
[378638431,1754935841508,-400.0,0.00016438,2]
[378638432,1754935841518,-400.0,0.00016438,2]
[378638433,1754935841529,-400.0,0.00016438,2]
[378638434,1754935841539,-837.26,0.00016438,2]
[378638435,1754935841555,-636.38,0.00016438,2]
[378638436,1754935841565,-541.46,0.00016438,2]
[378638437,1754935841576,-400.0,0.00016438,2]
[378638438,1754935841586,-400.0,0.00016438,2]
[378638439,1754935841596,-417.98023053,0.00016438,2]
[378638440,1754935841606,-442.17097753,0.00016438,2]
[378638441,1754935841618,-400.0,0.00016438,2]
[378638442,1754935841628,-527.78788376,0.00016438,2]
[378638443,1754935841638,-400.0,0.00016438,2]
[378638444,1754935841648,-400.0,0.00016438,2]
[378638445,1754935841658,-400.0,0.00016438,2]
[378638446,1754935841668,-400.0,0.00016438,2]
[378638447,1754935841678,-400.0,0.00016438,2]
[378638448,1754935841688,-400.0,0.00016438,2]
[378638449,1754935841699,-400.0,0.00016438,2]
[378638450,1754935841709,-400.0,0.00016438,2]
[378638451,1754935841718,-1210.72,0.00016438,2]
[378638452,1754935841728,-400.0,0.00016438,2]
[378638453,1754935841739,-529.43,0.00016438,2]
[378638454,1754935841749,-526.91,0.00016438,2]
[378638455,1754935841759,-705.77,0.00016438,2]
[378638456,1754935841769,-400.0,0.00016438,2]
[378638457,1754935841779,-657.77,0.00016438,2]
[378638458,1754935841789,-355.74906695,0.00016438,2]
[378638459,1754935841798,-250.0,0.00016438,2]
[378638460,1754935841808,-494.14,0.00016438,2]
[378638461,1754935841818,-512.45,0.00016438,2]
[378638462,1754935841828,-400.0,0.00016438,2]
[378638463,1754935841837,-400.0,0.00016438,2]
[378638464,1754935841846,-494.12783922,0.00016438,2]
[378638465,1754935841856,-486.24,0.00016438,2]
[378638466,1754935841865,-400.0,0.00016438,2]
[378638467,1754935841875,-400.0,0.00016438,2]
[378638468,1754935841884,-430.74,0.00016438,2]
[378638469,1754935841894,-400.0,0.00016438,2]
[378638470,1754935841904,-364.21767556,0.00016438,2]
[378638471,1754935841925,-64.99232444,0.00016438,2]
[378638472,1754935842316,-508.13,0.00016438,2]
[378638473,1754935842328,-400.0,0.00016438,2]
[378638474,1754935842339,-400.0,0.00016438,2]
[378638475,1754935842349,-400.0,0.00016438,2]
[378638476,1754935842359,-400.0,0.00016438,2]
[378638477,1754935842369,-220.45527556,0.00016438,2]
[378638478,1754935842381,-179.54472444,0.00016438,2]
[378638479,1754935842390,-482.7,0.00016438,2]
[378638480,1754935842401,-400.0,0.00016438,2]
[378638481,1754935842410,-421.69,0.00016438,2]
[378638482,1754935842420,-400.0,0.00016438,2]
[378638483,1754935842431,-400.0,0.00016438,2]
[378638484,1754935842440,-448.19,0.00016438,2]
[378638485,1754935842449,-400.0,0.00016438,2]
[378638486,1754935842459,-400.0,0.00016438,2]
[378638487,1754935842469,-400.0,0.00016438,2]
[378638488,1754935842479,-935.16,0.00016438,2]
[378638489,1754935842489,-400.0,0.00016438,2]
[378638490,1754935842499,-400.0,0.00016438,2]
[378638491,1754935842508,-461.11513622,0.00016438,2]
[378638492,1754935842519,-400.0,0.00016438,2]
[378638493,1754935842528,-400.0,0.00016438,2]
[378638494,1754935842538,-400.0,0.00016438,2]
[378638495,1754935842549,-400.0,0.00016438,2]
[378638496,1754935842558,-400.0,0.00016438,2]
[378638497,1754935842568,-400.0,0.00016438,2]
[378638498,1754935842578,-400.0,0.00016438,2]
[378638499,1754935842587,-400.0,0.00016438,2]
[378638500,1754935842597,-400.0,0.00016438,2]
[378638501,1754935842607,-400.0,0.00016438,2]
[378638502,1754935842616,-400.0,0.00016438,2]
[378638503,1754935842625,-400.0,0.00016438,2]
[378638504,1754935842634,-587.69,0.00016438,2]
[378638505,1754935842643,-400.0,0.00016438,2]
[378638506,1754935842652,-400.0,0.00016438,2]
[378638507,1754935842661,-400.0,0.00016438,2]
[378638508,1754935842671,-509.56,0.00016438,2]
[378638509,1754935842680,-400.0,0.00016438,2]
[378638510,1754935842690,-1203.6,0.00016438,2]
[378638511,1754935842699,-429.72,0.00016438,2]
[378638512,1754935842708,-400.0,0.00016438,2]
[378638513,1754935842718,-400.0,0.00016438,2]
[378638514,1754935842727,-400.0,0.00016438,2]
[378638515,1754935842737,-400.0,0.00016438,2]
[378638516,1754935842746,-661.75,0.00016438,2]
[378638517,1754935842755,-3512.13,0.00016438,2]
[378638518,1754935842764,-400.0,0.00016438,2]
[378638519,1754935842774,-400.0,0.00016438,2]
[378638521,1754935842783,-400.0,0.00016438,2]
[378638523,1754935842793,-400.0,0.00016438,2]
[378638525,1754935842802,-514.97,0.00016438,2]
[378638527,1754935842811,-400.0,0.00016438,2]
[378638529,1754935842820,-337.09913934,0.00016438,2]
[378638543,1754935843564,-105.20086066,0.00016438,2]
[378638544,1754935843574,-355.79538595,0.00016438,2]
[378638545,1754935843585,-44.20461405,0.00016438,2]
[378638546,1754935843595,-400.0,0.00016438,2]
[378638547,1754935843604,-117.75538595,0.00016438,2]
[378638548,1754935843615,-282.24461405,0.00016438,2]
[378638549,1754935843625,-400.0,0.00016438,2]
[378638550,1754935843635,-400.0,0.00016438,2]
[378638551,1754935843644,-400.0,0.00016438,2]
[378638552,1754935843654,-1000.0,0.00016438,2]
[378638553,1754935843663,-400.0,0.00016438,2]
[378638554,1754935843674,-521.68,0.00016438,2]
[378638555,1754935843685,-400.0,0.00016438,2]
[378638556,1754935843695,-400.0,0.00016438,2]
[378638557,1754935843706,-400.0,0.00016438,2]
[378638558,1754935843717,-1724.7,0.00016438,2]
[378638559,1754935843726,-400.0,0.00016438,2]
[378638560,1754935843736,-400.0,0.00016438,2]
[378638561,1754935843745,-452.03,0.00016438,2]
[378638562,1754935843755,-400.0,0.00016438,2]
[378638563,1754935843764,-400.0,0.00016438,2]
[378638564,1754935843774,-400.0,0.00016438,2]
[378638565,1754935843784,-400.0,0.00016438,2]
[378638566,1754935843793,-400.0,0.00016438,2]
[378638567,1754935843802,-400.0,0.00016438,2]
[378638568,1754935843812,-400.0,0.00016438,2]
[378638569,1754935843822,-998.21,0.00016438,2]
[378638570,1754935843831,-633.41,0.00016438,2]
[378638571,1754935843841,-400.0,0.00016438,2]
[378638572,1754935843850,-400.0,0.00016438,2]
[378638573,1754935843860,-400.0,0.00016438,2]
[378638574,1754935843869,-400.0,0.00016438,2]
[378638575,1754935843879,-400.0,0.00016438,2]
[378638576,1754935843888,-400.0,0.00016438,2]
[378638577,1754935843898,-1011.28,0.00016438,2]
[378638578,1754935843907,-400.0,0.00016438,2]
[378638579,1754935843916,-427.57,0.00016438,2]
[378638580,1754935843926,-2451.1,0.00016438,2]
[378638581,1754935843936,-400.0,0.00016438,2]
[378638582,1754935843947,-632.01,0.00016438,2]
[378638583,1754935843956,-400.0,0.00016438,2]
[378638584,1754935843967,-529.95,0.00016438,2]
[378638585,1754935843976,-727.61,0.00016438,2]
[378638586,1754935843986,-400.0,0.00016438,2]
[378638587,1754935843996,-423.38,0.00016438,2]
[378638588,1754935844006,-400.0,0.00016438,2]
[378638589,1754935844016,-579.92,0.00016438,2]
[378638590,1754935844025,-496.43657954,0.00016438,2]
[378638591,1754935844035,-400.0,0.00016438,2]
[378638592,1754935844045,-400.0,0.00016438,2]
[378638593,1754935844054,-1231.53,0.00016438,2]
[378638594,1754935844064,-818.91,0.00016438,2]
[378638595,1754935844075,-400.0,0.00016438,2]
[378638596,1754935844085,-531.49,0.00016438,2]
[378638597,1754935844095,-522.86,0.00016438,2]
[378638598,1754935844104,-434.96,0.00016438,2]
[378638599,1754935844118,-400.0,0.00016438,2]
[378638600,1754935844128,-400.0,0.00016438,2]
[378638601,1754935844138,-400.0,0.00016438,2]
[378638602,1754935844147,-812.85,0.00016438,2]
[378638603,1754935844158,-482.87,0.00016438,2]
[378638604,1754935844168,-400.0,0.00016438,2]
[378638605,1754935844178,-553.07,0.00016438,2]
[378638606,1754935844188,-543.32,0.00016438,2]
[378638607,1754935844198,-500.0,0.00016438,2]
[378638608,1754935844207,-500.0,0.00016438,2]
[378638609,1754935844217,-500.0,0.00016438,2]
[378638610,1754935844227,-400.0,0.00016438,2]
[378638611,1754935844236,-585.44,0.00016438,2]
[378638612,1754935844246,-400.0,0.00016438,2]
[378638613,1754935844256,-400.0,0.00016438,2]
[378638614,1754935844265,-499.79933477,0.00016438,2]
[378638615,1754935844275,-400.0,0.00016438,2]
[378638616,1754935844285,-609.49,0.00016438,2]
[378638617,1754935844295,-567.33,0.00016438,2]
[378638618,1754935844304,-490.55,0.00016438,2]
[378638619,1754935844314,-400.0,0.00016438,2]
[378638620,1754935844324,-7073.33,0.00016438,2]
[378638621,1754935844335,-400.0,0.00016438,2]
[378638622,1754935844344,-803.88,0.00016438,2]
[378638623,1754935844354,-400.0,0.00016438,2]
[378638624,1754935844365,-400.0,0.00016438,2]
[378638625,1754935844375,-400.0,0.00016438,2]
[378638626,1754935844385,-498.53,0.00016438,2]
[378638627,1754935844395,-400.0,0.00016438,2]
[378638628,1754935844406,-400.0,0.00016438,2]
[378638629,1754935844417,-664.92,0.00016438,2]
[378638630,1754935844429,-967.77,0.00016438,2]
[378638631,1754935844439,-266.74452652,0.00016438,2]
[378638632,1754935844450,-671.84,0.00016438,2]
[378638633,1754935844460,-400.0,0.00016438,2]
[378638634,1754935844477,-845.57,0.00016438,2]
[378638635,1754935844494,-400.0,0.00016438,2]
[378638636,1754935844504,-400.0,0.00016438,2]
[378638637,1754935844514,-1124.77,0.00016438,2]
[378638638,1754935844524,-891.08,0.00016438,2]
[378638639,1754935844534,-792.41,0.00016438,2]
[378638640,1754935844544,-400.0,0.00016438,2]
[378638641,1754935844554,-400.0,0.00016438,2]
[378638642,1754935844564,-1119.17,0.00016438,2]
[378638643,1754935844576,-708.7,0.00016438,2]
[378638644,1754935844585,-1416.98,0.00016438,2]
[378638645,1754935844595,-428.94,0.00016438,2]
[378638646,1754935844605,-572.29,0.00016438,2]
[378638647,1754935844689,-400.0,0.00016438,2]
[378638648,1754935844699,-400.0,0.00016438,2]
[378638649,1754935844709,-493.52,0.00016438,2]
[378638650,1754935844720,-400.0,0.00016438,2]
[378638651,1754935844729,-400.0,0.00016438,2]
[378638652,1754935844739,-400.0,0.00016438,2]
[378638653,1754935844748,-400.0,0.00016438,2]
[378638654,1754935844757,-400.0,0.00016438,2]
[378638655,1754935844767,-400.0,0.00016438,2]
[378638656,1754935844776,-400.0,0.00016438,2]
[378638657,1754935844786,-501.74,0.00016438,2]
[378638658,1754935844795,-400.0,0.00016438,2]
[378638659,1754935844805,-400.0,0.00016438,2]
[378638660,1754935844814,-561.51,0.00016438,2]
[378638661,1754935844825,-512.06,0.00016438,2]
[378638662,1754935844835,-2995.9,0.00016438,2]
[378638663,1754935844845,-400.0,0.00016438,2]
[378638664,1754935844854,-400.0,0.00016438,2]
[378638665,1754935844863,-400.0,0.00016438,2]
[378638666,1754935844872,-758.31,0.00016438,2]
[378638667,1754935844882,-758.45,0.00016438,2]
[378638668,1754935844891,-400.0,0.00016438,2]
[378638669,1754935844901,-400.0,0.00016438,2]
[378638670,1754935844910,-400.0,0.00016438,2]
[378638671,1754935844919,-1130.89,0.00016438,2]
[378638672,1754935844929,-807.2,0.00016438,2]
[378638673,1754935844937,-400.0,0.00016438,2]
[378638674,1754935844946,-1000.0,0.00016438,2]
[378638675,1754935844955,-400.0,0.00016438,2]
[378638676,1754935844965,-405.14926715,0.00016438,2]
[378638677,1754935844974,-400.0,0.00016438,2]
[378638678,1754935844983,-610.63,0.00016438,2]
[378638679,1754935844992,-400.0,0.00016438,2]
[378638680,1754935845001,-516.94709302,0.00016438,2]
[378638681,1754935845016,-400.0,0.00016438,2]
[378638682,1754935845034,-428.97,0.00016438,2]
[378638683,1754935845042,-400.0,0.00016438,2]
[378638684,1754935845052,-2828.86,0.00016438,2]
[378638685,1754935845061,-620.77,0.00016438,2]
[378638686,1754935845070,-400.0,0.00016438,2]
[378638687,1754935845080,-400.0,0.00016438,2]
[378638688,1754935845089,-614.29,0.00016438,2]
[378638689,1754935845098,-400.0,0.00016438,2]
[378638690,1754935845108,-400.0,0.00016438,2]
[378638691,1754935845119,-400.0,0.00016438,2]
[378638692,1754935845128,-400.0,0.00016438,2]
[378638693,1754935845137,-814.59,0.00016438,2]
[378638694,1754935845147,-400.0,0.00016438,2]
[378638695,1754935845157,-400.0,0.00016438,2]
[378638696,1754935845166,-490.17,0.00016438,2]
[378638697,1754935845175,-400.0,0.00016438,2]
[378638698,1754935845185,-400.0,0.00016438,2]
[378638699,1754935845194,-508.39,0.00016438,2]
[378638700,1754935845203,-400.0,0.00016438,2]
[378638701,1754935845212,-300.0,0.00016438,2]
[378638702,1754935845221,-872.47,0.00016438,2]
[378638703,1754935845230,-742.34,0.00016438,2]
[378638704,1754935845239,-400.0,0.00016438,2]
[378638705,1754935845248,-500.0,0.00016438,2]
[378638706,1754935845257,-500.0,0.00016438,2]
[378638707,1754935845266,-400.0,0.00016438,2]
[378638708,1754935845275,-400.0,0.00016438,2]
[378638709,1754935845284,-400.0,0.00016438,2]
[378638710,1754935845293,-400.0,0.00016438,2]
[378638711,1754935845302,-403.85,0.00016438,2]
[378638712,1754935845312,-465.22,0.00016438,2]
[378638713,1754935845321,-461.5,0.00016438,2]
[378638714,1754935845331,-400.0,0.00016438,2]
[378638715,1754935845341,-400.0,0.00016438,2]
[378638716,1754935845350,-400.0,0.00016438,2]
[378638717,1754935845360,-865.47,0.00016438,2]
[378638718,1754935845369,-401.48,0.00016438,2]
[378638719,1754935845379,-426.39,0.00016438,2]
[378638720,1754935845387,-400.0,0.00016438,2]
[378638721,1754935845397,-400.0,0.00016438,2]
[378638722,1754935845407,-821.82,0.00016438,2]
[378638723,1754935845417,-1139.65,0.00016438,2]
[378638724,1754935845427,-400.0,0.00016438,2]
[378638725,1754935845435,-400.0,0.00016438,2]
[378638726,1754935845444,-1467.9,0.00016438,2]
[378638727,1754935845454,-400.0,0.00016438,2]
[378638728,1754935845463,-400.0,0.00016438,2]
[378638729,1754935845472,-400.0,0.00016438,2]
[378638730,1754935845481,-400.0,0.00016438,2]
[378638731,1754935845490,-685.4,0.00016438,2]
[378638732,1754935845499,-400.0,0.00016438,2]
[378638733,1754935845508,-400.0,0.00016438,2]
[378638734,1754935845518,-400.0,0.00016438,2]
[378638735,1754935845527,-430.57,0.00016438,2]
[378638736,1754935845536,-623.59,0.00016438,2]
[378638737,1754935845545,-646.95,0.00016438,2]
[378638738,1754935845554,-400.91,0.00016438,2]
[378638739,1754935845563,-400.0,0.00016438,2]
[378638740,1754935845573,-400.0,0.00016438,2]
[378638741,1754935845582,-400.0,0.00016438,2]
[378638742,1754935845591,-400.0,0.00016438,2]
[378638743,1754935845600,-400.0,0.00016438,2]
[378638744,1754935845609,-400.0,0.00016438,2]
[378638745,1754935845619,-500.0,0.00016438,2]
[378638746,1754935845628,-400.0,0.00016438,2]
[378638747,1754935845637,-415.74,0.00016438,2]
[378638748,1754935845646,-483.27,0.00016438,2]
[378638749,1754935845655,-754.09,0.00016438,2]
[378638750,1754935845664,-400.0,0.00016438,2]
[378638751,1754935845673,-400.0,0.00016438,2]
[378638752,1754935845682,-500.0,0.00016438,2]
[378638753,1754935845691,-400.0,0.00016438,2]
[378638754,1754935845700,-500.0,0.00016438,2]
[378638755,1754935845709,-400.0,0.00016438,2]
[378638756,1754935845718,-400.0,0.00016438,2]
[378638757,1754935845727,-400.0,0.00016438,2]
[378638758,1754935845737,-400.0,0.00016438,2]
[378638759,1754935845746,-400.0,0.00016438,2]
[378638760,1754935845755,-400.0,0.00016438,2]
[378638761,1754935845764,-631.56,0.00016438,2]
[378638762,1754935845773,-400.0,0.00016438,2]
[378638763,1754935845782,-400.0,0.00016438,2]
[378638764,1754935845791,-436.05,0.00016438,2]
[378638765,1754935845800,-400.0,0.00016438,2]
[378638766,1754935845809,-824.66,0.00016438,2]
[378638767,1754935845818,-400.0,0.00016438,2]
[378638768,1754935845828,-400.0,0.00016438,2]
[378638769,1754935845838,-400.0,0.00016438,2]
[378638771,1754935845848,-400.0,0.00016438,2]
[378638773,1754935845857,-2622.51,0.00016438,2]
[378638775,1754935845866,-400.0,0.00016438,2]
[378638777,1754935845875,-1714.97,0.00016438,2]
[378638779,1754935845885,-400.0,0.00016438,2]
[378638781,1754935845894,-400.0,0.00016438,2]
[378638782,1754935845904,-757.94,0.00016438,2]
[378638783,1754935845913,-153.65305497,0.00016438,2]
[378638784,1754935845952,-246.34694503,0.00016438,2]
[378638785,1754935845963,-400.0,0.00016438,2]
[378638786,1754935845972,-400.0,0.00016438,2]
[378638787,1754935845982,-951.14,0.00016438,2]
[378638788,1754935845991,-420.9,0.00016438,2]
[378638789,1754935846000,-400.0,0.00016438,2]
[378638790,1754935846011,-1034.71,0.00016438,2]
[378638791,1754935846020,-211.13338352,0.00016438,2]
[378638792,1754935846031,-400.0,0.00016438,2]
[378638793,1754935846043,-400.0,0.00016438,2]
[378638794,1754935846054,-600.06,0.00016438,2]
[378638795,1754935846065,-400.0,0.00016438,2]
[378638796,1754935846076,-566.01,0.00016438,2]
[378638797,1754935846087,-760.71,0.00016438,2]
[378638798,1754935846097,-400.0,0.00016438,2]
[378638799,1754935846106,-400.0,0.00016438,2]
[378638800,1754935846118,-400.0,0.00016438,2]
[378638801,1754935846127,-400.0,0.00016438,2]
[378638802,1754935846136,-1456.87,0.00016438,2]
[378638803,1754935846146,-400.0,0.00016438,2]
[378638804,1754935846156,-400.0,0.00016438,2]
[378638805,1754935846167,-400.0,0.00016438,2]
[378638806,1754935846176,-424.25,0.00016438,2]
[378638807,1754935846186,-400.0,0.00016438,2]
[378638808,1754935846196,-400.0,0.00016438,2]
[378638809,1754935846206,-400.0,0.00016438,2]
[378638810,1754935846215,-400.0,0.00016438,2]
[378638811,1754935846225,-199.33436903,0.00016438,2]
[378638812,1754935846234,-730.72,0.00016438,2]
[378638813,1754935846243,-921.21,0.00016438,2]
[378638814,1754935846253,-400.0,0.00016438,2]
[378638815,1754935846262,-400.0,0.00016438,2]
[378638816,1754935846272,-492.09,0.00016438,2]
[378638817,1754935846281,-400.0,0.00016438,2]
[378638818,1754935846290,-517.26,0.00016438,2]
[378638819,1754935846299,-400.0,0.00016438,2]
[378638820,1754935846308,-400.0,0.00016438,2]
[378638821,1754935846318,-400.0,0.00016438,2]
[378638822,1754935846328,-400.0,0.00016438,2]
[378638823,1754935846338,-400.0,0.00016438,2]
[378638824,1754935846347,-580.48,0.00016438,2]
[378638825,1754935846357,-400.0,0.00016438,2]
[378638826,1754935846366,-400.0,0.00016438,2]
[378638827,1754935846376,-1196.0,0.00016438,2]
[378638829,1754935846385,-400.0,0.00016438,2]
[378638830,1754935846395,-471.94,0.00016438,2]
[378638832,1754935846404,-400.0,0.00016438,2]
[378638834,1754935846413,-800.49,0.00016438,2]
[378638836,1754935846423,-400.0,0.00016438,2]
[378638838,1754935846432,-492.77,0.00016438,2]
[378638839,1754935846441,-400.0,0.00016438,2]
[378638840,1754935846450,-1752.98,0.00016438,2]
[378638841,1754935846459,-400.0,0.00016438,2]
[378638842,1754935846469,-400.0,0.00016438,2]
[378638843,1754935846478,-1894.19,0.00016438,2]
[378638844,1754935846487,-400.0,0.00016438,2]
[378638845,1754935846495,-400.0,0.00016438,2]
[378638846,1754935846504,-1233.18,0.00016438,2]
[378638847,1754935846514,-400.0,0.00016438,2]
[378638848,1754935846522,-400.0,0.00016438,2]
[378638849,1754935846531,-400.0,0.00016438,2]
[378638850,1754935846541,-400.0,0.00016438,2]
[378638851,1754935846550,-400.0,0.00016438,2]
[378638852,1754935846560,-500.0,0.00016438,2]
[378638853,1754935846570,-1632.28,0.00016438,2]
[378638854,1754935846580,-282.06601547,0.00016438,2]
[378638855,1754935846590,-400.0,0.00016438,2]
[378638856,1754935846599,-400.0,0.00016438,2]
[378638857,1754935846608,-718.99,0.00016438,2]
[378638858,1754935846618,-400.0,0.00016438,2]
[378638859,1754935846627,-400.0,0.00016438,2]
[378638860,1754935846636,-400.0,0.00016438,2]
[378638861,1754935846645,-400.0,0.00016438,2]
[378638862,1754935846654,-400.0,0.00016438,2]
[378638863,1754935846664,-442.52937017,0.00016438,2]
[378638864,1754935846675,-400.0,0.00016438,2]
[378638865,1754935846685,-909.83,0.00016438,2]
[378638866,1754935846695,-400.0,0.00016438,2]
[378638867,1754935846704,-400.0,0.00016438,2]
[378638868,1754935846714,-581.09,0.00016438,2]
[378638869,1754935846723,-400.0,0.00016438,2]
[378638870,1754935846733,-433.87,0.00016438,2]
[378638871,1754935846742,-810.08,0.00016438,2]
[378638872,1754935846752,-1975.45,0.00016438,2]
[378638873,1754935846773,-400.0,0.00016438,2]
[378638874,1754935846784,-1139.38,0.00016438,2]
[378638875,1754935846794,-1078.0,0.00016438,2]
[378638876,1754935846804,-400.0,0.00016438,2]
[378638877,1754935846814,-400.0,0.00016438,2]
[378638878,1754935846823,-400.0,0.00016438,2]
[378638879,1754935846833,-400.0,0.00016438,2]
[378638880,1754935846842,-400.0,0.00016438,2]
[378638881,1754935846851,-400.0,0.00016438,2]
[378638882,1754935846860,-400.0,0.00016438,2]
[378638883,1754935846870,-1765.73,0.00016438,2]
[378638884,1754935846880,-400.0,0.00016438,2]
[378638885,1754935846889,-833.86,0.00016438,2]
[378638886,1754935846899,-400.0,0.00016438,2]
[378638887,1754935846908,-400.0,0.00016438,2]
[378638888,1754935846917,-400.0,0.00016438,2]
[378638889,1754935846926,-400.0,0.00016438,2]
[378638890,1754935846935,-425.6,0.00016438,2]
[378638891,1754935846947,-485.48,0.00016438,2]
[378638892,1754935846962,-869.06,0.00016438,2]
[378638893,1754935846971,-429.42,0.00016438,2]
[378638894,1754935846980,-1618.19,0.00016438,2]
[378638895,1754935846990,-1222.87,0.00016438,2]
[378638896,1754935846999,-500.0,0.00016438,2]
[378638897,1754935847007,-400.0,0.00016438,2]
[378638898,1754935847017,-550.62,0.00016438,2]